bitfinex/quotes_SOLUSD_20220228
["timestamp","ask_amount","ask_price","bid_price","bid_amount"]
[1646052861458,58.08995949,90.89,90.823,109.3]
[1646052861657,58.08995949,90.89,90.825,109.3]
[1646052861860,58.08995949,90.89,90.84,15.86]
[1646052863859,1.7419895,90.889,90.772,29.81479956]
[1646052864159,1.7419895,90.889,90.78,198.24]
[1646052864362,1.7419895,90.889,90.8,15.86]
[1646052865461,1.7419895,90.889,90.801,109.3]
[1646052866762,1.7419895,90.889,90.8,15.86]
[1646052866963,18.33094188,90.889,90.8,15.86]
[1646052867160,26.39399094,90.888,90.8,15.86]
[1646052867364,1.76821955,90.887,90.8,15.86]
[1646052867762,1.85107742,90.887,90.8,15.86]
[1646052868563,1.76821955,90.887,90.8,15.86]
[1646052868963,1.52361811,90.887,90.801,109.3]
[1646052869765,58.08995949,90.89,90.801,109.3]
[1646052870064,58.08995949,90.89,90.803,109.3]
[1646052870268,58.08995949,90.89,90.805,109.3]
[1646052870465,58.08995949,90.89,90.821,109.3]
[1646052870666,58.08995949,90.89,90.831,109.3]
[1646052870866,58.08995949,90.89,90.84,15.86]
[1646052871067,24.30305787,90.923,90.841,112.45318109]
[1646052871467,24.2202,90.923,90.841,112.45318109]
[1646052871667,22.7913,90.937,90.842,5.15953657]
[1646052871866,22.7913,90.937,90.843,6.0]
[1646052872069,22.7869,90.945,90.843,6.0]
[1646052872070,60.11872067,90.936,90.844,109.3]
[1646052872266,60.11872067,90.936,90.846,109.3]
[1646052872468,60.11872067,90.936,90.861,109.3]
[1646052872683,60.11872067,90.936,90.871,109.3]
[1646052872884,60.11872067,90.936,90.88,15.86]
[1646052876188,1.57158418,90.935,90.844,109.3]
[1646052876390,1.57158418,90.935,90.85,15.86]
[1646052876789,1.57158418,90.935,90.851,112.04678921]
[1646052877193,1.57158418,90.935,90.851,109.3]
[1646052877390,1.57158418,90.935,90.85,15.86]
[1646052877590,9.30158418,90.935,90.85,15.86]
[1646052877790,9.30158418,90.935,90.851,109.3]
[1646052878392,9.30158418,90.935,90.853,109.3]
[1646052878595,1.57158418,90.935,90.853,109.3]
[1646052880994,1.57158418,90.935,90.85,15.86]
[1646052881596,1.57158418,90.935,90.851,109.3]
[1646052882095,1.57158418,90.935,90.853,109.3]
[1646052882897,60.11872067,90.936,90.854,5.19890172]
[1646052883096,60.11872067,90.936,90.856,109.3]
[1646052883297,12.4338313,90.971,90.871,109.3]
[1646052883499,12.4338313,90.971,90.873,109.3]
[1646052883500,1.4295485,90.969,90.873,109.3]
[1646052883899,1.4295485,90.969,90.875,109.3]
[1646052884100,1.4295485,90.969,90.881,109.3]
[1646052884300,48.81887086,90.961,90.881,109.3]
[1646052884501,48.81887086,90.961,90.883,109.3]
[1646052884905,48.81887086,90.961,90.885,109.3]
[1646052885102,48.81887086,90.961,90.887,109.3]
[1646052885503,48.81887086,90.961,90.889,109.3]
[1646052885903,48.81887086,90.961,90.89,6.0]
[1646052886304,48.81887086,90.961,90.889,109.3]
[1646052886504,48.81887086,90.961,90.881,109.3]
[1646052886905,48.81887086,90.961,90.883,109.3]
[1646052887206,48.81887086,90.961,90.885,109.3]
[1646052887407,48.81887086,90.961,90.882,2.74678921]
[1646052887408,48.81887086,90.961,90.891,109.3]
[1646052887604,48.81887086,90.961,90.893,109.3]
[1646052887808,48.81887086,90.961,90.895,109.3]
[1646052888205,48.81887086,90.961,90.897,109.3]
[1646052888405,48.81887086,90.961,90.901,109.3]
[1646052888807,48.81887086,90.961,90.903,109.3]
[1646052889207,48.81887086,90.961,90.9,15.86]
[1646052890208,48.81887086,90.961,90.901,109.3]
[1646052890809,48.81887086,90.961,90.9,15.86]
[1646052892514,1.80901517,90.96,90.9,15.86]
[1646052892910,1.80901517,90.96,90.87,2.74678921]
[1646052892911,1.80901517,90.96,90.881,109.3]
[1646052893111,1.80901517,90.96,90.88,15.86]
[1646052894211,1.80901517,90.96,90.881,109.3]
[1646052894412,1.80901517,90.96,90.88,15.86]
[1646052895014,1.80901517,90.96,90.881,109.3]
[1646052895414,24.1976,90.97,90.881,109.3]
[1646052895612,24.1976,90.97,90.882,2.74678921]
[1646052895812,24.1976,90.97,90.883,109.3]
[1646052896012,24.1976,90.97,90.885,109.3]
[1646052896214,24.1976,90.97,90.901,109.3]
[1646052896414,56.32436288,90.979,90.903,109.3]
[1646052896613,24.8868,90.987,90.911,109.3]
[1646052896816,1.62904053,91.004,90.911,109.3]
[1646052897112,1.62904053,91.004,90.913,109.3]
[1646052897314,4.398,91.006,90.914,2.6984343]
[1646052897516,4.398,91.006,90.916,109.3]
[1646052897713,53.97651626,91.005,90.931,109.3]
[1646052897914,53.97651626,91.005,90.933,109.3]
[1646052898114,53.97651626,91.005,90.935,109.3]
[1646052898316,53.97651626,91.005,90.932,8.86359432]
[1646052898317,53.97651626,91.005,90.951,109.3]
[1646052899317,53.97651626,91.005,90.95,15.86]
[1646052899916,1.45913446,91.004,90.95,15.86]
[1646052900121,1.45913446,91.004,90.911,47.946]
[1646052900316,1.45913446,91.004,90.93,15.86]
[1646052901317,110.75913446,91.004,90.93,15.86]
[1646052901519,110.75913446,91.004,90.843,5.0]
[1646052901520,1.48393002,91.001,90.89,15.86]
[1646052901917,65.58,90.99,90.87,15.86]
[1646052902121,109.3,90.979,90.86,15.86]
[1646052902318,109.3,90.977,90.861,109.3]
[1646052902519,1.49139949,90.976,90.86,25.04532271]
[1646052902918,109.3,90.971,90.86,15.86]
[1646052903121,17.23650123,90.97,90.844,47.232]
[1646052903320,111.01798781,90.969,90.844,47.232]
[1646052903519,111.01798781,90.969,90.845,109.3]
[1646052903520,1.44873856,90.968,90.845,109.3]
[1646052903720,1.44873856,90.968,90.844,47.232]
[1646052903721,1.62066096,90.955,90.844,47.232]
[1646052904019,1.5608387,90.953,90.84,15.86]
[1646052904420,109.3,90.951,90.841,109.3]
[1646052904620,1.53672484,90.95,90.841,109.3]
[1646052905120,14.76096831,90.949,90.841,109.3]
[1646052905427,1.68252519,90.948,90.841,109.3]
[1646052907443,1.68252519,90.948,90.843,109.3]
[1646052908444,1.68252519,90.948,90.841,109.3]
[1646052909445,1.68252519,90.948,90.843,109.3]
[1646052909847,1.68252519,90.948,90.845,109.3]
[1646052910746,1.68252519,90.948,90.841,109.3]
[1646052910945,1.68252519,90.948,90.843,109.3]
[1646052911847,1.68252519,90.948,90.844,109.3]
[1646052912848,1.68252519,90.948,90.841,109.3]
[1646052915248,1.68252519,90.948,90.842,2.74678921]
[1646052915653,1.68252519,90.948,90.841,109.3]
[1646052916452,1.68252519,90.948,90.842,2.74678921]
[1646052916852,1.68252519,90.948,90.844,109.3]
[1646052917152,1.68252519,90.948,90.847,2.37155714]
[1646052917355,1.68252519,90.948,90.861,109.3]
[1646052917553,1.68252519,90.948,90.863,109.3]
[1646052921557,1.68252519,90.948,90.86,15.86]
[1646052921757,1.68252519,90.948,90.843,24.8815]
[1646052921958,9.22252519,90.948,90.843,24.8815]
[1646052922559,116.84,90.948,90.845,109.3]
[1646052922759,1.67771146,90.947,90.845,109.3]
[1646052923362,4.74859911,90.947,90.845,109.3]
[1646052923762,14.77261363,90.947,90.845,109.3]
[1646052923962,1.54112336,90.946,90.845,109.3]
[1646052926564,1.54112336,90.946,90.845,112.04678921]
[1646052927264,1.54112336,90.946,90.847,109.3]
[1646052927464,1.54112336,90.946,90.851,109.3]
[1646052929565,1.54112336,90.946,90.85,15.86]
[1646052931166,8.10112336,90.946,90.85,15.86]
[1646052931367,109.3,90.945,90.844,9.74345119]
[1646052931571,1.52885776,90.944,90.844,9.74345119]
[1646052931766,109.3,90.941,90.82,15.86]
[1646052931967,1.56116095,90.938,90.821,23.5726]
[1646052932168,1.56116095,90.938,90.822,109.3]
[1646052932367,109.3,90.935,90.82,15.86]
[1646052932566,65.58,90.922,90.82,15.86]
[1646052932767,65.58,90.909,90.802,7.78434557]
[1646052932967,174.88,90.902,90.802,7.78434557]
[1646052933169,109.3,90.899,90.802,7.78434557]
[1646052933367,1.54166013,90.898,90.782,109.3]
[1646052934167,1.67321582,90.895,90.782,109.3]
[1646052934668,1.67321582,90.895,90.784,109.3]
[1646052937470,23.36084485,90.894,90.784,109.3]
[1646052937670,55.55869584,90.893,90.784,109.3]
[1646052937871,1.59701848,90.892,90.786,109.3]
[1646052938070,1.59701848,90.892,90.801,109.3]
[1646052938270,1.3975344,90.891,90.801,109.3]
[1646052939275,1.3975344,90.891,90.803,109.3]
[1646052940072,24.0002,90.892,90.803,109.3]
[1646052940272,24.0002,90.892,90.801,109.3]
[1646052940472,24.0002,90.892,90.803,109.3]
[1646052940675,24.0002,90.892,90.805,109.3]
[1646052940875,24.0002,90.892,90.81,15.86]
[1646052941075,1.55228819,90.891,90.811,1.7537935]
[1646052942075,1.55228819,90.891,90.8,15.86]
[1646052944581,26.90417232,90.89,90.795,9.94284051]
[1646052944777,1.64080861,90.889,90.795,9.94284051]
[1646052944979,1.51678356,90.888,90.78,15.86]
[1646052945378,1.53953182,90.887,90.78,15.86]
[1646052945579,1.61225661,90.886,90.78,15.86]
[1646052945779,22.6028,90.885,90.78,15.86]
[1646052945977,1.47552261,90.884,90.783,109.3]
[1646052946580,25.35417818,90.883,90.783,109.3]
[1646052946780,1.70791909,90.882,90.783,109.3]
[1646052947697,1.70791909,90.882,90.782,10.44465485]
[1646052947900,27.06209727,90.882,90.78,15.86]
[1646052948199,1.79425302,90.88,90.78,15.86]
[1646052948397,1.45305646,90.878,90.764,109.3]
[1646052948798,109.3,90.871,90.76,24.67627153]
[1646052948997,1.44210576,90.87,90.75,15.86]
[1646052949201,109.3,90.861,90.75,32.542]
[1646052949397,1.62161585,90.858,90.75,32.542]
[1646052949897,109.3,90.856,90.75,32.542]
[1646052950198,1.79879326,90.853,90.75,16.682]
[1646052950598,109.3,90.851,90.75,16.682]
[1646052950797,65.58,90.842,90.75,16.682]
[1646052950999,1.44381731,90.841,90.74,15.86]
[1646052951300,1.86309404,90.84,90.74,15.86]
[1646052951499,31.05857818,90.84,90.74,15.86]
[1646052951700,1.57212822,90.839,90.74,15.86]
[1646052951997,110.6986507,90.838,90.74,15.86]
[1646052952200,65.58,90.836,90.74,15.86]
[1646052952399,109.3,90.831,90.711,47.9328]
[1646052952600,109.3,90.823,90.711,47.9328]
[1646052952799,109.26495419,90.821,90.711,47.9328]
[1646052952998,1.54845487,90.82,90.711,47.9328]
[1646052953197,48.7450023,90.819,90.713,109.3]
[1646052953398,48.7450023,90.819,90.715,109.3]
[1646052953399,1.71290714,90.818,90.715,109.3]
[1646052953599,1.71290714,90.818,90.717,109.3]
[1646052953899,1.71290714,90.818,90.721,109.3]
[1646052954302,48.7450023,90.819,90.722,2.41349456]
[1646052954502,48.7450023,90.819,90.724,109.3]
[1646052954701,48.7450023,90.819,90.723,6.0]
[1646052954702,48.7450023,90.819,90.726,109.3]
[1646052955001,48.7450023,90.819,90.731,109.3]
[1646052956402,1.74342266,90.818,90.731,109.3]
[1646052957003,48.7450023,90.819,90.731,109.3]
[1646052961006,1.5280228,90.901,90.73,15.86]
[1646052961007,1.4156641,90.848,90.733,109.3]
[1646052961207,1.59921305,90.866,90.737,177.59680321]
[1646052961409,1.59921305,90.866,90.751,109.3]
[1646052961608,22.9308,90.88,90.75,15.86]
[1646052961609,1.36240369,90.879,90.754,2.42560648]
[1646052961907,1.36240369,90.879,90.756,109.3]
[1646052962110,50.69907883,90.878,90.771,109.3]
[1646052962407,1.69460007,90.877,90.781,109.3]
[1646052962608,50.69907883,90.878,90.781,109.3]
[1646052963006,1.55473058,90.877,90.781,109.3]
[1646052963207,1.55473058,90.877,90.78,15.86]
[1646052963609,1.54843834,90.875,90.78,15.86]
[1646052964007,1.54711918,90.873,90.78,15.86]
[1646052964810,1.85340193,90.872,90.78,15.86]
[1646052965207,109.3,90.862,90.752,23.1972]
[1646052965409,109.3,90.859,90.752,23.1972]
[1646052965608,1.85693041,90.858,90.752,23.1972]
[1646052965809,109.3,90.857,90.752,23.1972]
[1646052966009,1.53681908,90.856,90.752,23.1972]
[1646052966210,109.3,90.841,90.752,23.1972]
[1646052966409,109.3,90.841,90.742,22.801]
[1646052966410,1.54284992,90.84,90.742,22.801]
[1646052966610,109.3,90.839,90.742,22.801]
[1646052966810,1.46928928,90.838,90.742,22.801]
[1646052967214,139.29671643,90.837,90.742,22.801]
[1646052967415,158.222,90.836,90.742,22.801]
[1646052967611,1.43134418,90.835,90.742,22.801]
[1646052968011,26.82743422,90.835,90.742,22.801]
[1646052968212,47.38860423,90.836,90.72,15.86]
[1646052968213,101.0179766,90.834,90.72,15.86]
[1646052968412,101.0179766,90.834,90.712,23.7831]
[1646052968415,109.3,90.821,90.712,23.7831]
[1646052968613,1.60540594,90.818,90.713,6.0]
[1646052969213,1.49265738,90.815,90.712,23.7831]
[1646052969413,31.0649567,90.817,90.712,23.7831]
[1646052969414,1.43696403,90.811,90.712,23.7831]
[1646052969815,109.3,90.809,90.712,23.7831]
[1646052970019,1.43950578,90.808,90.712,23.7831]
[1646052970215,167.66005394,90.807,90.712,23.7831]
[1646052970417,1.8391573,90.804,90.712,23.7831]
[1646052971019,1.7104118,90.802,90.712,23.7831]
[1646052971720,13.25360961,90.801,90.712,23.7831]
[1646052971919,1.82127892,90.8,90.712,23.7831]
[1646052972521,13.25360961,90.799,90.712,23.7831]
[1646052972718,1.75827562,90.798,90.712,23.7831]
[1646052973119,31.0649567,90.797,90.712,23.7831]
[1646052973319,1.76091151,90.796,90.712,23.7831]
[1646052973519,24.8862,90.795,90.713,109.3]
[1646052974119,19.33921466,90.794,90.713,109.3]
[1646052974819,19.33921466,90.794,90.712,23.7831]
[1646052975022,1.50004828,90.793,90.712,23.7831]
[1646052975621,13.25360961,90.792,90.692,109.3]
[1646052976021,1.5300203,90.79,90.692,109.3]
[1646052976420,1.54812285,90.787,90.692,109.3]
[1646052976623,174.88,90.782,90.685,22.5646]
[1646052976821,109.3,90.78,90.65,15.86]
[1646052977027,1.41369295,90.777,90.651,48.4105]
[1646052977221,5.82269295,90.777,90.652,2.88307052]
[1646052977423,1.51609898,90.775,90.651,51.15728921]
[1646052977625,69.989,90.774,90.653,109.3]
[1646052977921,1.58800109,90.769,90.653,109.3]
[1646052978124,4.409,90.768,90.653,109.3]
[1646052978325,109.3,90.767,90.653,109.3]
[1646052978525,1.43473467,90.766,90.653,109.3]
[1646052978925,1.43473467,90.766,90.654,6.0]
[1646052979126,1.43473467,90.766,90.655,109.3]
[1646052979325,1.43473467,90.766,90.654,6.0]
[1646052979326,1.43473467,90.766,90.661,109.3]
[1646052979526,1.43473467,90.766,90.663,109.3]
[1646052979927,1.43473467,90.766,90.665,109.3]
[1646052980130,1.43473467,90.766,90.667,109.3]
[1646052980326,1.43473467,90.766,90.671,109.3]
[1646052980927,22.8167,90.767,90.673,109.3]
[1646052981127,22.8167,90.767,90.675,109.3]
[1646052981527,22.8167,90.767,90.677,109.3]
[1646052981728,22.8167,90.767,90.676,6.0]
[1646052981729,22.8167,90.767,90.679,109.3]
[1646052981928,22.8167,90.767,90.681,109.3]
[1646052982128,22.8167,90.767,90.682,3.06914826]
[1646052982328,22.8167,90.767,90.681,109.3]
[1646052983831,22.8167,90.767,90.682,2.41815024]
[1646052984030,50.48208122,90.775,90.683,109.3]
[1646052984231,50.48208122,90.775,90.682,11.38977822]
[1646052984232,50.48208122,90.775,90.685,109.3]
[1646052984429,50.48208122,90.775,90.682,11.38977822]
[1646052984430,50.48208122,90.775,90.691,109.3]
[1646052985030,50.48208122,90.775,90.692,2.79371641]
[1646052985230,50.48208122,90.775,90.693,109.3]
[1646052985433,50.48208122,90.775,90.696,2.83538058]
[1646052985632,50.48208122,90.775,90.711,109.3]
[1646052985831,50.48208122,90.775,90.713,109.3]
[1646052987130,50.48208122,90.775,90.712,8.14749261]
[1646052987937,50.48208122,90.775,90.713,109.3]
[1646052988131,50.48208122,90.775,90.712,8.14749261]
[1646052988534,50.48208122,90.775,90.71,15.86]
[1646052991461,50.48208122,90.775,90.711,109.3]
[1646052994164,1.63901012,90.774,90.704,10.26955077]
[1646052994564,24.7469,90.773,90.704,10.26955077]
[1646052994764,1.35687231,90.772,90.704,10.26955077]
[1646052995569,1.35687231,90.772,90.681,109.3]
[1646052995764,1.35687231,90.772,90.68,39.1004]
[1646052995966,28.71854337,90.771,90.681,6.0]
[1646052996168,1.4294954,90.77,90.68,23.2404]
[1646052996565,28.71854337,90.769,90.68,23.2404]
[1646052996766,1.71764709,90.768,90.681,6.0]
[1646052996965,1.71764709,90.768,90.68,23.2404]
[1646052997267,30.42752379,90.768,90.68,23.2404]
[1646052997465,1.57759298,90.767,90.681,6.0]
[1646052997867,1.57759298,90.767,90.68,23.2404]
[1646052998069,174.88,90.765,90.66,15.86]
[1646052998266,174.88,90.763,90.631,52.3562]
[1646052998467,109.3,90.761,90.64,15.86]
[1646052998667,71.84259479,90.762,90.64,15.86]
[1646052998668,109.3,90.759,90.64,15.86]
[1646052998866,109.3,90.757,90.64,15.86]
[1646052999067,1.45155928,90.754,90.641,109.3]
[1646052999369,1.45155928,90.754,90.64,15.86]
[1646052999370,4.41,90.753,90.643,109.3]
[1646052999666,1.52489522,90.752,90.644,24.7879]
[1646052999867,4.41,90.751,90.645,6.0]
[1646053000069,4.41,90.751,90.637,4.41]
[1646053000070,69.99,90.751,90.637,4.41]
[1646053000269,109.3,90.734,90.61,15.86]
[1646053000474,15.86,90.73,90.611,4.41]
[1646053000674,1.594464,90.729,90.611,7.02469418]
[1646053000869,1.594464,90.729,90.612,26.88397681]
[1646053001069,50.66888763,90.728,90.613,120.33690757]
[1646053001369,1.49410075,90.727,90.615,109.3]
[1646053001573,1.49410075,90.727,90.617,109.3]
[1646053001771,1.49410075,90.727,90.631,109.3]
[1646053001970,1.49410075,90.727,90.633,109.3]
[1646053002169,50.66888763,90.728,90.635,109.3]
[1646053002370,50.66888763,90.728,90.641,109.3]
[1646053002570,50.66888763,90.728,90.643,109.3]
[1646053002773,50.66888763,90.728,90.645,109.3]
[1646053003373,50.66888763,90.728,90.647,109.3]
[1646053003574,50.66888763,90.728,90.651,109.3]
[1646053003773,50.66888763,90.728,90.652,4.41]
[1646053003974,50.66888763,90.728,90.651,109.3]
[1646053005574,50.66888763,90.728,90.652,2.74678921]
[1646053005778,50.66888763,90.728,90.653,4.41]
[1646053006175,50.66888763,90.728,90.654,2.74678921]
[1646053007277,1.68831161,90.755,90.654,2.74678921]
[1646053007478,22.7025,90.756,90.656,109.3]
[1646053007678,22.7025,90.756,90.671,109.3]
[1646053007878,22.7025,90.756,90.673,109.3]
[1646053008079,22.7025,90.756,90.675,109.3]
[1646053008281,59.12333801,90.755,90.677,109.3]
[1646053008478,59.12333801,90.755,90.691,109.3]
[1646053008681,59.12333801,90.755,90.701,109.3]
[1646053009480,59.12333801,90.755,90.701,112.04678921]
[1646053010481,59.12333801,90.755,90.704,2.77789623]
[1646053010883,59.12333801,90.755,90.706,109.3]
[1646053011081,59.12333801,90.755,90.711,109.3]
[1646053011882,59.12333801,90.755,90.71,15.86]
[1646053014285,59.12333801,90.755,90.711,109.3]
[1646053014683,59.12333801,90.755,90.71,15.86]
[1646053016091,59.12333801,90.755,90.687,2.74678921]
[1646053016092,59.12333801,90.755,90.691,109.3]
[1646053018790,58.62333801,90.755,90.691,109.3]
[1646053019990,58.62333801,90.755,90.692,2.74678921]
[1646053020191,23.9714,90.779,90.693,4.409]
[1646053020491,24.8474,90.793,90.695,2.4780869]
[1646053020689,24.8474,90.793,90.697,109.3]
[1646053020890,24.8474,90.793,90.711,109.3]
[1646053021095,57.53457931,90.792,90.712,4.407]
[1646053021391,57.53457931,90.792,90.713,115.3]
[1646053021592,57.53457931,90.792,90.714,4.407]
[1646053021791,57.53457931,90.792,90.716,109.3]
[1646053021990,57.53457931,90.792,90.721,109.3]
[1646053022191,24.8474,90.793,90.721,109.3]
[1646053022493,1.83627921,90.829,90.723,109.3]
[1646053022715,1.83627921,90.829,90.725,109.3]
[1646053022917,24.7013,90.831,90.728,2.48342996]
[1646053023116,24.7544,90.84,90.741,174.88]
[1646053023316,24.7544,90.84,90.744,2.44285852]
[1646053023516,24.7544,90.84,90.745,4.405]
[1646053023718,24.7544,90.84,90.761,109.3]
[1646053023917,24.7544,90.84,90.763,109.3]
[1646053024117,24.7544,90.84,90.764,4.405]
[1646053024317,42.99481427,90.848,90.768,109.3]
[1646053024517,23.2898,90.866,90.781,109.3]
[1646053024718,24.7851215,90.885,90.783,109.3]
[1646053024916,23.1204,90.885,90.785,109.3]
[1646053025316,23.1204,90.885,90.787,109.3]
[1646053025516,23.1204,90.885,90.786,8.74678921]
[1646053025517,46.83834467,90.884,90.8,125.16]
[1646053025718,1.67264672,90.883,90.8,125.16]
[1646053026319,1.67264672,90.883,90.8,15.86]
[1646053026518,110.97264672,90.883,90.782,4.402]
[1646053026718,6.11837683,90.882,90.78,15.86]
[1646053027619,1.21637683,90.882,90.782,109.3]
[1646053027819,1.21637683,90.882,90.783,4.402]
[1646053028019,1.21637683,90.882,90.785,109.3]
[1646053028219,1.21637683,90.882,90.787,109.3]
[1646053028518,1.21637683,90.882,90.791,109.3]
[1646053029818,1.21637683,90.882,90.793,109.3]
[1646053030422,1.21637683,90.882,90.79,15.86]
[1646053031622,7.48637683,90.882,90.79,15.86]
[1646053031821,1.6543985,90.88,90.781,22.5344]
[1646053032020,4.402,90.879,90.771,2.74678921]
[1646053032221,109.3,90.871,90.77,15.86]
[1646053032421,221.9,90.863,90.759,2.74678921]
[1646053032622,109.3,90.861,90.75,15.86]
[1646053032822,109.3,90.859,90.75,15.86]
[1646053033021,109.3,90.851,90.75,15.86]
[1646053033221,1.85345502,90.848,90.735,24.1332]
[1646053033421,109.3,90.845,90.735,24.1332]
[1646053033620,109.3,90.843,90.735,24.1332]
[1646053033822,1.60066714,90.84,90.723,24.8032]
[1646053034023,109.3,90.831,90.723,24.8032]
[1646053034221,1.72626553,90.828,90.723,24.8032]
[1646053034422,4.406,90.827,90.723,24.8032]
[1646053034822,109.3,90.825,90.71,125.16]
[1646053035022,109.3,90.823,90.71,15.86]
[1646053035224,109.3,90.821,90.71,15.86]
[1646053035524,1.421011,90.82,90.71,15.86]
[1646053035722,4.406,90.819,90.71,15.86]
[1646053036123,4.406,90.819,90.71,125.16]
[1646053036323,109.3,90.817,90.71,15.86]
[1646053036525,6.07216828,90.816,90.71,15.86]
[1646053036923,109.3,90.815,90.71,15.86]
[1646053037123,109.3,90.813,90.71,15.86]
[1646053037325,6.06748358,90.812,90.71,15.86]
[1646053037924,6.28475228,90.812,90.71,15.86]
[1646053038125,65.58,90.806,90.695,28.2272]
[1646053038326,1.8247869,90.8,90.695,28.2272]
[1646053038527,4.407,90.799,90.695,28.2272]
[1646053038726,129.37629177,90.799,90.695,28.2272]
[1646053039028,1.74664829,90.796,90.695,28.2272]
[1646053039225,4.407,90.795,90.695,28.2272]
[1646053039628,1.48417368,90.793,90.695,28.2272]
[1646053039926,108.8,90.791,90.695,4.406]
[1646053040125,17.48669162,90.79,90.695,4.406]
[1646053040327,5.9505579,90.789,90.695,4.406]
[1646053040725,109.3,90.788,90.695,4.406]
[1646053040926,1.46848703,90.787,90.695,4.406]
[1646053041327,22.8288,90.786,90.695,4.406]
[1646053041528,1.3971143,90.785,90.695,113.706]
[1646053042531,1.3971143,90.785,90.695,4.406]
[1646053043029,26.30021712,90.784,90.695,4.406]
[1646053043230,6.23063754,90.783,90.695,4.406]
[1646053043430,1.82263754,90.783,90.695,4.406]
[1646053044632,1.40117852,90.781,90.695,4.406]
[1646053048636,1.40117852,90.781,90.696,2.74678921]
[1646053048837,22.8288,90.786,90.697,109.3]
[1646053049036,22.8288,90.786,90.711,109.3]
[1646053049239,22.8288,90.786,90.712,0.95898503]
[1646053049935,22.8288,90.786,90.713,109.3]
[1646053050536,22.8288,90.786,90.713,112.04678921]
[1646053050940,22.8288,90.786,90.713,2.74678921]
[1646053052340,22.8288,90.786,90.715,109.3]
[1646053052640,50.54180937,90.793,90.731,109.3]
[1646053052839,50.54180937,90.793,90.733,109.3]
[1646053053442,50.54180937,90.793,90.733,112.04678921]
[1646053055142,50.54180937,90.793,90.73,15.86]
[1646053055344,24.93,90.792,90.717,24.2419]
[1646053055943,24.93,90.792,90.717,32.48240959]
[1646053056143,24.93,90.792,90.718,109.3]
[1646053056344,24.93,90.792,90.721,109.3]
[1646053060068,24.93,90.792,90.72,15.86]
[1646053060269,1.63368545,90.791,90.72,15.86]
[1646053060470,1.63368545,90.791,90.718,109.3]
[1646053062371,24.93,90.792,90.718,109.3]
[1646053063771,25.6213068,90.821,90.721,109.3]
[1646053063971,23.6615,90.815,90.723,109.3]
[1646053064172,23.6615,90.815,90.725,109.3]
[1646053064375,23.6615,90.815,90.726,2.47545912]
[1646053064572,23.6615,90.815,90.741,109.3]
[1646053064774,47.86122386,90.797,90.742,2.99874169]
[1646053065474,47.86122386,90.797,90.741,109.3]
[1646053066575,47.86122386,90.797,90.74,15.86]
[1646053066776,55.49122386,90.797,90.72,15.86]
[1646053066978,24.3376,90.796,90.72,15.86]
[1646053069879,1.85426354,90.795,90.69,15.86]
[1646053070080,1.85426354,90.795,90.704,6.0]
[1646053070280,111.15426354,90.795,90.69,15.86]
[1646053070481,109.3,90.791,90.68,15.86]
[1646053070779,1.75025073,90.788,90.672,109.3]
[1646053070982,4.408,90.787,90.672,109.3]
[1646053071180,109.3,90.786,90.672,109.3]
[1646053071380,109.3,90.784,90.672,109.3]
[1646053071581,25.6213068,90.787,90.672,109.3]
[1646053071582,109.3,90.78,90.672,109.3]
[1646053071779,5.80727396,90.779,90.672,109.3]
[1646053071980,1.39927396,90.779,90.672,109.3]
[1646053072182,4.408,90.778,90.672,109.3]